[Event "1st Chartres GM 2020"]
[Site "Chartres"]
[Date "2020.09.30"]
[Round "1.2"]
[White "Lamard, Guillaume"]
[Black "Maurizzi, Marc Andria"]
[Result "1-0"]
[ECO "B30"]
[WhiteElo "2486"]
[BlackElo "2433"]
[Annotator "ChessBase"]
[PlyCount "45"]
[EventDate "2020.09.30"]
[EventType "tourn"]
[EventCountry "FRA"]
[SourceTitle "playchess.com"]
[Source "ChessBase"]
[SourceQuality "1"]
[TimeControl "5400+30"]

1. e4 {[%emt 0:00:00]} c5 {[%emt 0:00:00]} 2. Nf3 {[%emt 0:00:00]} Nc6 {[%emt 0:00:43]} 3. Bb5 {[%emt 0:00:11]} e6 {[%emt 0:00:59]} 4. O-O {[%emt 0:00:28]} Nge7 {[%emt 0:02:06]} 5. Re1 {[%emt 0:00:41]} Nd4 {[%emt 0:00:18]} 6. Nxd4 {[%emt 0:07:13]} cxd4 {[%emt 0:00:01]} 7. d3 {[%emt 0:01:17]} a6 {[%emt 0:03:44]} 8. Bc4 {[%emt 0:03:31]} Nc6 {[%emt 0:02:09]} 9. a4 {[%emt 0:06:08]} Be7 {[%emt 0:07:12]} 10. Nd2 {[%emt 0:11:46]} d5 {[%emt 0:05:53]} 11. exd5 {[%emt 0:05:18]} exd5 {[%emt 0:00:03]} 12. Bb3 {[%emt 0:00:21]} O-O {[%emt 0:03:04]} 13. Qh5 {[%emt 0:03:06]} Be6 {[%emt 0:03:43]} 14. Nf3 {[%emt 0:08:13]} h6 {[%emt 0:16:18]} 15. Bd2 {[%emt 0:00:38]} Bf6 {[%emt 0:01:38]} 16. a5 {[%emt 0:10:05]} Qd7 {[%emt 0:04:35]} 17. h3 {[%emt 0:01:03]} Rac8 {[%emt 0:05:06]} 18. Nh2 {[%emt 0:01:46]} Bd8 {[%emt 0:09:40]} 19. Ng4 {[%emt 0:03:04]} Bc7 {[%emt 0:01:53]} 20. Nxh6+ {[%emt 0:09:33]} gxh6 {[%emt 0:00:02]} 21. Bxh6 {[%emt 0:00:11]} Ne7 {[%emt 0:01:25]} 22. Qg5+ {[%emt 0:00:37]} Ng6 {[%emt 0:00:06]} 23. Qf6 {[%emt 0:00:03]} 1-0

[Event "1st Chartres GM 2020"]
[Site "Chartres"]
[Date "2020.09.30"]
[Round "1.3"]
[White "Guliyev, Namig"]
[Black "Loiseau, Quentin"]
[Result "1-0"]
[ECO "C86"]
[WhiteElo "2529"]
[BlackElo "2457"]
[Annotator "ChessBase"]
[PlyCount "78"]
[EventDate "2020.09.30"]
[EventType "tourn"]
[EventCountry "FRA"]
[SourceTitle "playchess.com"]
[Source "ChessBase"]
[SourceQuality "1"]
[TimeControl "5400+30"]

1. e4 {[%emt 0:00:00]} e5 {[%emt 0:00:00]} 2. Nf3 {[%emt 0:00:00]} Nc6 {[%emt 0:00:00]} 3. Bb5 {[%emt 0:01:55]} a6 {[%emt 0:00:35]} 4. Ba4 {[%emt 0:00:08]} Nf6 {[%emt 0:00:07]} 5. O-O {[%emt 0:00:07]} Be7 {[%emt 0:00:23]} 6. Qe2 {[%emt 0:05:27]} b5 {[%emt 0:03:25]} 7. Bb3 {[%emt 0:03:56]} O-O {[%emt 0:00:54]} 8. c3 {[%emt 0:00:53]} d5 {[%emt 0:17:21]} 9. d3 {[%emt 0:04:03]} h6 {[%emt 0:04:18]} 10. exd5 {[%emt 0:10:16]} Nxd5 {[%emt 0:01:50]} 11. Nxe5 {[%emt 0:11:38]} Nxe5 {[%emt 0:00:40]} 12. Qxe5 {[%emt 0:00:06]} Bb7 {[%emt 0:00:14]} 13. Bxd5 {[%emt 0:04:00]} Bxd5 {[%emt 0:26:19]} 14. Bf4 {[%emt 0:04:44]} Bb7 {[%emt 0:01:11]} 15. Qxc7 {[%emt 0:08:08]} Qd5 {[%emt 0:00:50]} 16. f3 {[%emt 0:00:23]} Rfe8 {[%emt 0:05:28]} 17. d4 {[%emt 0:02:42]} Bf8 {[%emt 0:09:51]} 18. Nd2 {[%emt 0:03:47]} Rac8 {[%emt 0:05:39]} 19. Qa5 {[%emt 0:01:18]} Qf5 {[%emt 0:05:29]} 20. Bg3 {[%emt 0:00:15]} Re2 {[%emt 0:03:40]} 21. Rf2 {[%emt 0:09:41]} Rce8 {[%emt 0:05:21]} 22. Qc7 {[%emt 0:04:04]} R2e7 {[%emt 0:06:40]} 23. Qf4 {[%emt 0:01:51]} Qd5 {[%emt 0:00:31]} 24. Nb3 {[%emt 0:10:01]} f5 {[%emt 0:00:40]} 25. Qd2 {[%emt 0:00:28]} g5 {[%emt 0:00:24]} 26. Be5 {[%emt 0:00:26]} Re6 {[%emt 0:00:35]} 27. Re1 {[%emt 0:03:10]} Qd7 {[%emt 0:00:34]} 28. Nc1 {[%emt 0:01:00]} Bd5 {[%emt 0:00:06]} 29. b3 {[%emt 0:00:21]} Qa7 {[%emt 0:00:24]} 30. Nd3 {[%emt 0:01:10]} Rc8 {[%emt 0:00:38]} 31. h4 {[%emt 0:01:44]} Rg6 {[%emt 0:00:22]} 32. hxg5 {[%emt 0:00:49]} hxg5 {[%emt 0:00:10]} 33. Bh2 {[%emt 0:01:00]} f4 {[%emt 0:01:18]} 34. Ne5 {[%emt 0:00:12]} Re6 {[%emt 0:00:27]} 35. g3 {[%emt 0:01:21]} Bg7 {[%emt 0:00:33]} 36. gxf4 {[%emt 0:00:19]} gxf4 {[%emt 0:00:13]} 37. Bxf4 {[%emt 0:00:24]} Rf8 {[%emt 0:00:47]} 38. Rg2 {[%emt 0:00:24]} b4 {[%emt 0:00:30]} 39. c4 {[%emt 0:00:59]} Ba8 {[%emt 0:01:03]} 1-0

[Event "1st Chartres GM 2020"]
[Site "Chartres"]
[Date "2020.09.30"]
[Round "1.4"]
[White "David, Alberto"]
[Black "Vlachos, Anatole"]
[Result "1-0"]
[ECO "C90"]
[WhiteElo "2520"]
[BlackElo "2437"]
[Annotator "ChessBase"]
[PlyCount "103"]
[EventDate "2020.09.30"]
[EventType "tourn"]
[EventCountry "FRA"]
[SourceTitle "playchess.com"]
[Source "ChessBase"]
[SourceQuality "1"]
[TimeControl "5400+30"]

1. e4 {[%emt 0:00:00]} e5 {[%emt 0:00:00]} 2. Nf3 {[%emt 0:00:00]} Nc6 {[%emt 0:00:00]} 3. Bb5 {[%emt 0:00:00]} a6 {[%emt 0:00:00]} 4. Ba4 {[%emt 0:00:01]} Nf6 {[%emt 0:00:00]} 5. d3 {[%emt 0:00:59]} b5 {[%emt 0:00:20]} 6. Bb3 {[%emt 0:00:05]} Be7 {[%emt 0:00:24]} 7. O-O {[%emt 0:01:56]} d6 {[%emt 0:00:23]} 8. c3 {[%emt 0:00:13]} O-O {[%emt 0:01:40]} 9. Re1 {[%emt 0:00:09]} Nb8 {[%emt 0:10:43]} 10. Nbd2 {[%emt 0:01:32]} Nbd7 {[%emt 0:00:10]} 11. Nf1 {[%emt 0:04:08]} Nc5 {[%emt 0:03:56]} 12. Bc2 {[%emt 0:04:20]} Bb7 {[%emt 0:19:54]} 13. Ng3 {[%emt 0:00:22]} Re8 {[%emt 0:01:23]} 14. d4 {[%emt 0:01:53]} Ncd7 {[%emt 0:00:55]} 15. a4 {[%emt 0:06:40]} c5 {[%emt 0:03:39]} 16. d5 {[%emt 0:04:06]} c4 {[%emt 0:01:08]} 17. Nf5 {[%emt 0:06:11]} Bf8 {[%emt 0:04:51]} 18. h3 {[%emt 0:02:29]} g6 {[%emt 0:07:17]} 19. Nh6+ {[%emt 0:00:58]} Bxh6 {[%emt 0:00:05]} 20. Bxh6 {[%emt 0:00:06]} Nh5 {[%emt 0:00:19]} 21. Qd2 {[%emt 0:03:29]} Nc5 {[%emt 0:03:46]} 22. Nh2 {[%emt 0:04:49]} Rb8 {[%emt 0:08:58]} 23. Ng4 {[%emt 0:11:37]} Bc8 {[%emt 0:00:53]} 24. axb5 {[%emt 0:03:10]} Rxb5 {[%emt 0:01:36]} 25. Ra2 {[%emt 0:01:24]} a5 {[%emt 0:14:03]} 26. Ne3 {[%emt 0:09:40]} Nf4 {[%emt 0:04:18]} 27. Nxc4 {[%emt 0:00:56]} g5 {[%emt 0:01:22]} 28. h4 {[%emt 0:00:18]} f6 {[%emt 0:00:12]} 29. g3 {[%emt 0:08:25]} Nh3+ {[%emt 0:00:49]} 30. Kg2 {[%emt 0:00:34]} Kf7 {[%emt 0:01:31]} 31. Rh1 {[%emt 0:10:19]} Kg6 {[%emt 0:01:53]} 32. b4 {[%emt 0:02:18]} Kxh6 {[%emt 0:05:54]} 33. bxc5 {[%emt 0:00:06]} Rxc5 {[%emt 0:00:27]} 34. Ne3 {[%emt 0:00:43]} Nf4+ {[%emt 0:00:46]} 35. Kf1 {[%emt 0:04:17]} Ng6 {[%emt 0:02:42]} 36. Nf5+ {[%emt 0:01:28]} Bxf5 {[%emt 0:00:19]} 37. hxg5+ {[%emt 0:00:19]} Kg7 {[%emt 0:00:01]} 38. gxf6+ {[%emt 0:03:20]} Kxf6 {[%emt 0:00:53]} 39. exf5 {[%emt 0:00:13]} Nf8 {[%emt 0:00:07]} 40. Ba4 {[%emt 0:01:29]} Kxf5 {[%emt 0:01:05]} 41. Qh6 {[%emt 0:02:17]} Ng6 {[%emt 0:01:08]} 42. Bxe8 {[%emt 0:03:41]} Qxe8 {[%emt 0:00:08]} 43. Rh5+ {[%emt 0:00:00]} Kf6 {[%emt 0:00:26]} 44. Qg5+ {[%emt 0:00:00]} Kg7 {[%emt 0:00:08]} 45. Qh6+ {[%emt 0:00:00]} Kf6 {[%emt 0:00:05]} 46. Rb2 {[%emt 0:00:00]} Rc7 {[%emt 0:00:16]} 47. g4 {[%emt 0:00:22]} Qa4 {[%emt 0:00:43]} 48. Rf5+ {[%emt 0:00:24]} Ke7 {[%emt 0:00:07]} 49. Qxh7+ {[%emt 0:00:20]} Kd8 {[%emt 0:00:15]} 50. Qg8+ {[%emt 0:00:23]} Kd7 {[%emt 0:00:12]} 51. Qe6+ {[%emt 0:00:12]} Kd8 {[%emt 0:00:01]} 52. Rb8+ {[%emt 0:00:07]} 1-0

[Event "1st Chartres GM 2020"]
[Site "Chartres"]
[Date "2020.09.30"]
[Round "1.5"]
[White "Duboue, Peio"]
[Black "Dardha, Daniel"]
[Result "1/2-1/2"]
[ECO "B22"]
[WhiteElo "2439"]
[BlackElo "2468"]
[Annotator "ChessBase"]
[PlyCount "136"]
[EventDate "2020.09.30"]
[EventType "tourn"]
[EventCountry "FRA"]
[SourceTitle "playchess.com"]
[Source "ChessBase"]
[SourceQuality "1"]
[TimeControl "5400+30"]

1. e4 {[%emt 0:06:10]} c5 {[%emt 0:00:00]} 2. c3 {[%emt 0:00:08]} Nf6 {[%emt 0:00:00]} 3. e5 {[%emt 0:00:03]} Nd5 {[%emt 0:00:00]} 4. d4 {[%emt 0:00:13]} cxd4 {[%emt 0:00:00]} 5. Nf3 {[%emt 0:00:09]} d6 {[%emt 0:00:36]} 6. cxd4 {[%emt 0:00:07]} Nc6 {[%emt 0:00:17]} 7. Bc4 {[%emt 0:00:05]} e6 {[%emt 0:01:30]} 8. O-O {[%emt 0:00:11]} Be7 {[%emt 0:00:16]} 9. Bd2 {[%emt 0:00:09]} O-O {[%emt 0:01:14]} 10. Nc3 {[%emt 0:00:07]} Nb6 {[%emt 0:02:35]} 11. Bb3 {[%emt 0:00:24]} dxe5 {[%emt 0:00:20]} 12. dxe5 {[%emt 0:00:05]} Nd4 {[%emt 0:01:39]} 13. Be3 {[%emt 0:00:08]} Nf5 {[%emt 0:07:27]} 14. Bf4 {[%emt 0:02:30]} Bd7 {[%emt 0:02:25]} 15. Qe2 {[%emt 0:01:53]} Nh4 {[%emt 0:09:15]} 16. Rfd1 {[%emt 0:06:26]} Ng6 {[%emt 0:20:24]} 17. Be3 {[%emt 0:01:18]} Qe8 {[%emt 0:01:03]} 18. a4 {[%emt 0:13:56]} Bc6 {[%emt 0:01:15]} 19. Nb5 {[%emt 0:17:02]} Qb8 {[%emt 0:08:25]} 20. Nxa7 {[%emt 0:13:28]} Bd5 {[%emt 0:07:08]} 21. Qb5 {[%emt 0:04:35]} Bxb3 {[%emt 0:06:04]} 22. Qxb3 {[%emt 0:00:15]} Nd5 {[%emt 0:00:10]} 23. Nb5 {[%emt 0:00:28]} Nxe5 {[%emt 0:00:14]} 24. Nxe5 {[%emt 0:03:01]} Qxe5 {[%emt 0:00:13]} 25. Bd4 {[%emt 0:01:03]} Qf5 {[%emt 0:01:54]} 26. Qg3 {[%emt 0:01:11]} f6 {[%emt 0:02:00]} 27. Nc7 {[%emt 0:06:27]} Rad8 {[%emt 0:08:27]} 28. Nxd5 {[%emt 0:00:03]} Rxd5 {[%emt 0:00:27]} 29. Be3 {[%emt 0:01:57]} Rxd1+ {[%emt 0:02:32]} 30. Rxd1 {[%emt 0:00:01]} Qc2 {[%emt 0:00:23]} 31. Rc1 {[%emt 0:01:20]} Qxa4 {[%emt 0:01:10]} 32. h4 {[%emt 0:01:17]} Rd8 {[%emt 0:01:36]} 33. Qf3 {[%emt 0:04:40]} Qd7 {[%emt 0:02:29]} 34. h5 {[%emt 0:01:01]} f5 {[%emt 0:02:57]} 35. h6 {[%emt 0:01:41]} g6 {[%emt 0:03:22]} 36. g3 {[%emt 0:00:19]} Bf6 {[%emt 0:00:55]} 37. Bb6 {[%emt 0:02:54]} Rc8 {[%emt 0:00:50]} 38. Rd1 {[%emt 0:00:33]} Qc6 {[%emt 0:01:05]} 39. Qb3 {[%emt 0:00:47]} Kf7 {[%emt 0:01:05]} 40. Bd4 {[%emt 0:02:35]} g5 {[%emt 0:01:55]} 41. Bxf6 {[%emt 0:00:47]} Kxf6 {[%emt 0:00:02]} 42. Qb4 {[%emt 0:01:20]} Qc7 {[%emt 0:00:36]} 43. Rd6 {[%emt 0:01:02]} Qc5 {[%emt 0:02:18]} 44. Qxb7 {[%emt 0:01:03]} Rc7 {[%emt 0:00:12]} 45. Qa6 {[%emt 0:01:28]} Qe5 {[%emt 0:00:07]} 46. Qb6 {[%emt 0:04:51]} Rc8 {[%emt 0:00:40]} 47. Qb7 {[%emt 0:01:00]} Qe1+ {[%emt 0:01:43]} 48. Kg2 {[%emt 0:00:19]} Qe4+ {[%emt 0:00:04]} 49. Qxe4 {[%emt 0:00:04]} fxe4 {[%emt 0:00:02]} 50. Rd7 {[%emt 0:01:22]} Kg6 {[%emt 0:03:39]} 51. Rd6 {[%emt 0:00:23]} Re8 {[%emt 0:00:00]} 52. Rd4 {[%emt 0:00:30]} e3 {[%emt 0:00:00]} 53. fxe3 {[%emt 0:00:30]} Rb8 {[%emt 0:00:00]} 54. b4 {[%emt 0:00:30]} Kxh6 {[%emt 0:00:00]} 55. Re4 {[%emt 0:00:30]} Kg6 {[%emt 0:00:00]} 56. Rxe6+ {[%emt 0:00:30]} Kf5 {[%emt 0:00:00]} 57. Rh6 {[%emt 0:00:30]} Rxb4 {[%emt 0:00:26]} 58. Rxh7 {[%emt 0:00:30]} Rb2+ {[%emt 0:00:30]} 59. Kf1 {[%emt 0:00:30]} Kg4 {[%emt 0:00:30]} 60. Rg7 {[%emt 0:00:30]} Kf3 {[%emt 0:00:30]} 61. Kg1 {[%emt 0:00:30]} g4 {[%emt 0:00:00]} 62. Rf7+ {[%emt 0:00:00]} Kxg3 {[%emt 0:00:00]} 63. Rf1 {[%emt 0:00:00]} Kh3 {[%emt 0:00:00]} 64. Re1 {[%emt 0:00:00]} Rg2+ {[%emt 0:00:00]} 65. Kh1 {[%emt 0:00:00]} g3 {[%emt 0:00:00]} 66. e4 {[%emt 0:00:00]} Rh2+ {[%emt 0:00:00]} 67. Kg1 {[%emt 0:00:00]} Rg2+ {[%emt 0:00:00]} 68. Kh1 {[%emt 0:00:00]} Rh2+ {[%emt 0:00:00]} 1/2-1/2

[Event "1st Chartres GM 2020"]
[Site "Chartres"]
[Date "2020.09.30"]
[Round "2.2"]
[White "Dardha, Daniel"]
[Black "Guliyev, Namig"]
[Result "1/2-1/2"]
[ECO "C47"]
[WhiteElo "2468"]
[BlackElo "2529"]
[Annotator "ChessBase"]
[PlyCount "35"]
[EventDate "2020.09.30"]
[EventType "tourn"]
[EventCountry "FRA"]
[SourceTitle "playchess.com"]
[Source "ChessBase"]
[SourceQuality "1"]
[TimeControl "5400+30"]

1. e4 {[%emt 0:00:00]} e5 {[%emt 0:00:00]} 2. Nf3 {[%emt 0:00:00]} Nf6 {[%emt 0:00:00]} 3. Nc3 {[%emt 0:00:16]} Nc6 {[%emt 0:00:27]} 4. a3 {[%emt 0:01:02]} Be7 {[%emt 0:01:20]} 5. d4 {[%emt 0:00:31]} d6 {[%emt 0:02:13]} 6. Bb5 {[%emt 0:02:35]} exd4 {[%emt 0:00:38]} 7. Nxd4 {[%emt 0:01:29]} Bd7 {[%emt 0:00:10]} 8. O-O {[%emt 0:02:15]} Nxd4 {[%emt 0:01:33]} 9. Bxd7+ {[%emt 0:00:23]} Qxd7 {[%emt 0:00:08]} 10. Qxd4 {[%emt 0:00:04]} O-O {[%emt 0:00:08]} 11. h3 {[%emt 0:02:35]} Rfe8 {[%emt 0:00:27]} 12. Bg5 {[%emt 0:00:35]} h6 {[%emt 0:00:30]} 13. Bh4 {[%emt 0:04:09]} Nh5 {[%emt 0:02:53]} 14. Bxe7 {[%emt 0:00:52]} Qxe7 {[%emt 0:00:11]} 15. Rfe1 {[%emt 0:04:08]} Nf4 {[%emt 0:02:11]} 16. Re3 {[%emt 0:09:43]} Qe5 {[%emt 0:05:01]} 17. Qd1 {[%emt 0:04:43]} c6 {[%emt 0:00:28]} 18. Qf1 {[%emt 0:04:37]} 1/2-1/2

[Event "1st Chartres GM 2020"]
[Site "Chartres"]
[Date "2020.09.30"]
[Round "2.3"]
[White "Loiseau, Quentin"]
[Black "Lamard, Guillaume"]
[Result "1/2-1/2"]
[ECO "B12"]
[WhiteElo "2457"]
[BlackElo "2486"]
[Annotator "ChessBase"]
[PlyCount "35"]
[EventDate "2020.09.30"]
[EventType "tourn"]
[EventCountry "FRA"]
[SourceTitle "playchess.com"]
[Source "ChessBase"]
[SourceQuality "1"]
[TimeControl "5400+30"]

1. e4 {[%emt 0:00:00]} c6 {[%emt 0:00:00]} 2. d4 {[%emt 0:01:08]} d5 {[%emt 0:00:00]} 3. e5 {[%emt 0:01:07]} Bf5 {[%emt 0:00:00]} 4. Nf3 {[%emt 0:00:09]} e6 {[%emt 0:00:00]} 5. Be2 {[%emt 0:00:05]} Ne7 {[%emt 0:02:54]} 6. O-O {[%emt 0:00:19]} h6 {[%emt 0:00:03]} 7. Nbd2 {[%emt 0:00:43]} Nd7 {[%emt 0:00:06]} 8. Nb3 {[%emt 0:00:49]} g5 {[%emt 0:00:38]} 9. Ne1 {[%emt 0:00:46]} Qc7 {[%emt 0:08:34]} 10. Nd3 {[%emt 0:01:33]} Bg7 {[%emt 0:03:53]} 11. f4 {[%emt 0:02:03]} O-O-O {[%emt 0:06:29]} 12. Nbc5 {[%emt 0:10:31]} Bxd3 {[%emt 0:09:16]} 13. Nxd3 {[%emt 0:06:45]} Nf5 {[%emt 0:10:20]} 14. c3 {[%emt 0:01:18]} f6 {[%emt 0:01:00]} 15. g4 {[%emt 0:10:01]} Nh4 {[%emt 0:02:23]} 16. Qe1 {[%emt 0:11:06]} Rde8 {[%emt 0:00:21]} 17. Qg3 {[%emt 0:02:20]} Ng6 {[%emt 0:06:19]} 18. exf6 {[%emt 0:11:59]} 1/2-1/2

[Event "1st Chartres GM 2020"]
[Site "Chartres"]
[Date "2020.09.30"]
[Round "2.4"]
[White "David, Alberto"]
[Black "Duboue, Peio"]
[Result "1/2-1/2"]
[ECO "C70"]
[WhiteElo "2520"]
[BlackElo "2439"]
[Annotator "ChessBase"]
[PlyCount "56"]
[EventDate "2020.09.30"]
[EventType "tourn"]
[EventCountry "FRA"]
[SourceTitle "playchess.com"]
[Source "ChessBase"]
[SourceQuality "1"]
[TimeControl "5400+30"]

1. e4 {[%emt 0:00:00]} e5 {[%emt 0:00:00]} 2. Nf3 {[%emt 0:00:00]} Nc6 {[%emt 0:00:00]} 3. Bb5 {[%emt 0:00:00]} g6 {[%emt 0:00:00]} 4. c3 {[%emt 0:05:08]} a6 {[%emt 0:00:00]} 5. Ba4 {[%emt 0:07:38]} Bg7 {[%emt 0:00:00]} 6. d4 {[%emt 0:00:55]} exd4 {[%emt 0:00:00]} 7. cxd4 {[%emt 0:00:34]} b5 {[%emt 0:00:05]} 8. Bc2 {[%emt 0:03:01]} d6 {[%emt 0:03:24]} 9. d5 {[%emt 0:16:09]} Nb4 {[%emt 0:02:29]} 10. Bb3 {[%emt 0:04:33]} a5 {[%emt 0:00:05]} 11. a4 {[%emt 0:02:35]} Ba6 {[%emt 0:01:59]} 12. Na3 {[%emt 0:14:44]} bxa4 {[%emt 0:06:31]} 13. Bc4 {[%emt 0:02:30]} Qd7 {[%emt 0:01:05]} 14. O-O {[%emt 0:00:49]} Ne7 {[%emt 0:00:15]} 15. Bxa6 {[%emt 0:06:10]} Nxa6 {[%emt 0:00:45]} 16. Be3 {[%emt 0:00:18]} Bxb2 {[%emt 0:01:40]} 17. Nc4 {[%emt 0:02:23]} Bg7 {[%emt 0:08:54]} 18. Rxa4 {[%emt 0:04:34]} O-O {[%emt 0:00:37]} 19. Rxa5 {[%emt 0:02:08]} Nb4 {[%emt 0:18:07]} 20. Nd4 {[%emt 0:07:27]} Rxa5 {[%emt 0:03:25]} 21. Nxa5 {[%emt 0:00:06]} Ra8 {[%emt 0:00:15]} 22. Nab3 {[%emt 0:01:16]} c5 {[%emt 0:02:51]} 23. dxc6 {[%emt 0:00:29]} Nexc6 {[%emt 0:01:17]} 24. Nxc6 {[%emt 0:10:23]} Qxc6 {[%emt 0:00:24]} 25. Bd4 {[%emt 0:00:18]} Qxe4 {[%emt 0:01:13]} 26. Bxg7 {[%emt 0:00:06]} Kxg7 {[%emt 0:00:06]} 27. Qxd6 {[%emt 0:00:07]} Ra6 {[%emt 0:02:37]} 28. Qd4+ {[%emt 0:00:44]} Qxd4 {[%emt 0:00:06]} 1/2-1/2